bitfinex-derivatives/quotes_BNBF0:USTF0_20250302
["timestamp","ask_amount","ask_price","bid_price","bid_amount"]
[1740952920688,1.215,619.61,618.38,0.32342572]
[1740952920890,1.215,619.61,618.51,1.2028038]
[1740952921088,0.28363935,619.6,618.51,1.2028038]
[1740952921890,0.28363935,619.6,618.52,0.32335251]
[1740952922090,0.569,619.59,618.52,0.32335251]
[1740952922292,0.28363935,619.58,618.52,0.32335251]
[1740952924991,1.78163935,619.58,618.52,0.32335251]
[1740952925286,0.28363935,619.57,618.52,0.32335251]
[1740952926791,2.73863935,619.57,618.52,0.32335251]
[1740952926991,0.28363935,619.56,618.52,0.32335251]
[1740952929793,2.455,619.57,618.52,0.32335251]
[1740952929994,0.28371232,619.56,618.52,0.32335251]
[1740952931398,1.293,619.55,618.52,0.32335251]
[1740952931598,0.28371232,619.54,618.52,0.32335251]
[1740952934898,1.536,619.53,618.52,0.32335251]
[1740952935294,0.28366244,619.52,618.52,0.32335251]
[1740952937797,1.062,619.51,618.52,0.32335251]
[1740952937999,0.28366244,619.5,618.52,0.32335251]
[1740952938802,1.388,619.49,618.52,0.32335251]
[1740952939101,0.28366244,619.48,618.52,0.32335251]
[1740952941506,1.388,619.49,618.52,0.32335251]
[1740952941701,0.28370801,619.48,618.52,0.32335251]
[1740952944906,0.952,619.47,618.52,0.32335251]
[1740952945107,0.28371575,619.46,618.52,0.32335251]
[1740952947911,1.38,619.45,618.52,0.32335251]
[1740952948310,0.28371779,619.44,618.52,0.32335251]
[1740952949811,0.2837215,619.43,618.52,0.32335251]
[1740952950013,0.2837215,619.44,618.52,0.32335251]
[1740952951213,1.2417215,619.44,618.52,0.32335251]
[1740952951413,0.958,619.44,618.52,0.32335251]
[1740952951713,0.28372001,619.43,618.52,0.32335251]
[1740952954418,0.569,619.42,618.52,0.32335251]
[1740952954615,0.28372001,619.41,618.52,0.32335251]
[1740952954816,0.569,619.42,618.52,0.32335251]
[1740952955119,0.28376158,619.41,618.52,0.32335251]
[1740952957023,1.543,619.4,618.52,0.32335251]
[1740952957221,0.28376158,619.39,618.52,0.32335251]
[1740952959123,0.952,619.38,618.52,0.32335251]
[1740952959323,0.952,619.38,617.83,1.2028038]
[1740952959324,0.28376158,619.37,617.83,1.2028038]
[1740952959523,0.28376158,619.37,617.85,0.32370316]
[1740952960520,0.952,619.38,617.85,0.32370316]
[1740952960717,0.28381306,619.37,617.85,0.32370316]
[1740952963231,0.28377605,619.36,617.86,0.29711129]
[1740952963428,0.28377605,619.37,617.88,0.32368744]
[1740952963629,0.28377605,619.36,617.88,0.32368744]
[1740952963827,0.28377605,619.37,617.88,0.32368744]
[1740952964028,0.28377605,619.36,617.88,0.32368744]
[1740952964232,0.28377605,619.35,617.88,0.32368744]
[1740952964434,0.28377605,619.37,617.88,0.32368744]
[1740952964637,0.28377605,619.36,617.88,0.32368744]
[1740952964934,0.28377605,619.35,617.88,0.32368744]
[1740952965131,0.991,619.35,617.88,0.32368744]
[1740952965337,0.28377605,619.34,617.88,0.32368744]
[1740952966435,0.991,619.35,617.88,0.32368744]
[1740952966636,0.28379293,619.34,617.88,0.32368744]
[1740952968038,1.113,619.33,617.88,0.32368744]
[1740952968340,0.28379293,619.32,617.88,0.32368744]
[1740952969042,1.98479293,619.32,617.88,0.32368744]
[1740952969241,0.28379293,619.31,617.88,0.32368744]
[1740952971842,0.283782,619.3,617.88,0.32368744]
[1740952972041,1.513,619.3,617.88,0.32368744]
[1740952972343,1.659782,619.29,617.88,0.32368744]
[1740952972538,0.283782,619.28,617.88,0.32368744]
[1740952973536,0.28377989,619.27,617.88,0.32368744]
[1740952973741,0.28377989,619.28,617.88,0.32368744]
[1740952973940,0.28377989,619.27,617.88,0.32368744]
[1740952974139,0.28377989,619.26,617.88,0.32368744]
[1740952974339,0.28377989,619.25,617.88,0.32368744]
[1740952974545,0.953,619.25,617.88,0.32368744]
[1740952974748,0.28377989,619.24,617.88,0.32368744]
[1740952976937,0.28377989,619.24,617.89,0.2970797]
[1740952977143,0.28377989,619.24,617.91,0.32367173]
[1740952977342,0.28377989,619.24,617.92,0.2970797]
[1740952977540,0.28377989,619.24,617.94,0.32365601]
[1740952978540,0.28374269,619.23,617.94,0.32365601]
[1740952978741,0.28374269,619.24,617.94,0.32365601]
[1740952979245,0.28374269,619.24,617.95,0.29707727]
[1740952979445,0.28374269,619.24,617.97,0.3236403]
[1740952981349,0.28374269,619.24,618.0,1.2028038]
[1740952982848,0.28374269,619.24,618.02,0.32361412]
[1740952983147,0.953,619.25,618.02,0.32361412]
[1740952983345,1.283,619.23,618.02,0.32361412]
[1740952983946,1.283,619.23,618.03,0.29700492]
[1740952984145,1.283,619.23,618.05,0.32359841]
[1740952987150,1.283,619.23,618.08,1.2028038]
[1740952987546,1.283,619.23,618.1,0.32357223]
[1740952990556,1.514,619.22,618.1,0.32357223]
[1740952995860,0.569,619.21,618.1,0.32357223]
[1740952999652,1.392,619.2,618.1,0.32357223]
[1740953000052,1.392,619.2,618.11,0.29699966]
[1740953000053,0.28366516,619.19,618.11,0.29699966]
[1740953000257,0.28366516,619.19,618.13,0.32355653]
[1740953000453,0.28366266,619.18,618.14,0.29699713]
[1740953000657,0.28366266,619.19,618.16,0.32354083]
[1740953000856,1.392,619.2,618.17,0.29699713]
[1740953001057,0.28366606,619.19,618.17,0.29699713]
[1740953001253,1.392,619.2,618.16,0.32354083]
[1740953001460,0.28367737,619.19,618.17,0.29701187]
[1740953001758,1.392,619.2,618.16,0.32354083]
[1740953002659,0.28369045,619.19,618.16,0.32354083]
[1740953004963,1.392,619.2,618.16,0.32354083]
[1740953005164,1.077,619.19,618.16,0.32354083]
[1740953006766,2.099,619.19,618.16,0.32354083]
[1740953008064,0.28370032,619.18,618.16,0.32354083]
[1740953008268,2.099,619.19,618.16,0.32354083]
[1740953008669,0.28369621,619.18,618.16,0.32354083]
[1740953011273,2.099,619.19,618.16,0.32354083]
[1740953015378,0.28374864,619.18,618.16,0.32354083]
[1740953019688,0.28379349,619.17,618.16,0.32354083]
[1740953019883,0.28379349,619.16,618.16,0.32354083]
[1740953020087,0.28379349,619.18,618.16,0.32354083]
[1740953020286,0.28379349,619.17,618.16,0.32354083]
[1740953020482,0.28379349,619.18,618.16,0.32354083]
[1740953020685,2.099,619.19,618.16,0.32354083]
[1740953020686,0.28379349,619.17,618.16,0.32354083]
[1740953020884,0.28379349,619.18,618.16,0.32354083]
[1740953021089,0.28379349,619.17,618.16,0.32354083]
[1740953021288,0.28379349,619.16,618.16,0.32354083]
[1740953021486,0.28379349,619.15,618.16,0.32354083]
[1740953021689,0.28379349,619.14,618.16,0.32354083]
[1740953021888,0.28379349,619.18,618.16,0.32354083]
[1740953022090,0.28379349,619.17,618.16,0.32354083]
[1740953022389,0.28379349,619.16,618.16,0.32354083]
[1740953022584,0.28379349,619.18,618.16,0.32354083]
[1740953029300,1.762,619.17,618.16,0.32354083]
[1740953029595,0.28385045,619.16,618.16,0.32354083]
[1740953030992,1.762,619.17,618.16,0.32354083]
[1740953031194,0.28385138,619.16,618.16,0.32354083]
[1740953032999,0.957,619.15,618.16,0.32354083]
[1740953033198,0.28385138,619.14,618.16,0.32354083]
[1740953033890,0.955,619.13,618.16,0.32354083]
[1740953034092,0.28385138,619.12,618.16,0.32354083]
[1740953034898,1.4,619.11,618.16,0.32354083]
[1740953035099,0.28385138,619.1,618.16,0.32354083]
[1740953035494,0.97,619.09,618.16,0.32354083]
[1740953035697,0.28385138,619.08,618.16,0.32354083]
[1740953040906,0.28381837,619.07,618.16,0.32354083]
[1740953041106,0.28381837,619.08,618.16,0.32354083]
[1740953041300,0.97,619.09,618.16,0.32354083]
[1740953044014,0.28375892,619.08,618.16,0.32354083]
[1740953044509,2.661,619.08,618.16,0.32354083]
[1740953045206,3.226,619.08,618.16,0.32354083]
[1740953047010,0.28376731,619.07,618.16,0.32354083]
[1740953048009,3.226,619.08,618.16,0.32354083]
[1740953050009,0.28377703,619.07,618.16,0.32354083]
[1740953051306,1.75777703,619.07,618.16,0.32354083]
[1740953051505,1.474,619.07,618.16,0.32354083]
[1740953054807,2.918,619.07,618.16,0.32354083]
[1740953057211,3.873,619.07,618.16,0.32354083]
[1740953057716,5.016,619.07,618.16,0.32354083]
[1740953058317,0.28376575,619.06,618.16,0.32354083]
[1740953059018,5.016,619.07,618.16,0.32354083]
[1740953059220,0.28375973,619.06,618.16,0.32354083]
[1740953059414,5.016,619.07,618.16,0.32354083]
[1740953060517,5.581,619.07,618.16,0.32354083]
[1740953063720,6.948,619.07,618.16,0.32354083]
[1740953067622,6.948,619.07,618.17,0.29698116]
[1740953067819,6.948,619.07,618.19,0.32352512]
[1740953069625,6.948,619.07,618.2,0.2969823]
[1740953069825,6.948,619.07,618.22,0.32350943]
[1740953070726,6.948,619.07,618.23,0.29696193]
[1740953070919,6.948,619.07,618.25,0.32349373]
[1740953071122,6.948,619.07,618.26,0.29696193]
[1740953071523,6.948,619.07,618.28,0.32347803]
[1740953076121,8.103,619.07,618.28,0.32347803]
[1740953078225,8.103,619.07,618.29,0.29688345]
[1740953078427,8.103,619.07,618.3,0.32346757]
[1740953079921,8.103,619.07,618.31,0.29685363]
[1740953080321,8.103,619.07,618.32,0.3234571]
[1740953080722,9.57,619.07,618.32,0.3234571]
[1740953081027,9.57,619.07,618.33,0.29686065]
[1740953081428,9.57,619.07,618.32,0.3234571]
[1740953081724,9.57,619.07,618.33,0.29685452]
[1740953081928,9.57,619.07,618.34,0.32344664]
[1740953082124,9.57,619.07,618.35,0.29685452]
[1740953082330,9.57,619.07,618.36,0.32343618]
[1740953082529,9.57,619.07,618.37,0.29685452]
[1740953082731,9.57,619.07,618.38,0.32342572]
[1740953083030,9.57,619.07,618.39,0.29685452]
[1740953083233,9.57,619.07,618.4,0.32341526]
[1740953083432,9.57,619.07,618.41,0.29685452]
[1740953083626,9.57,619.07,618.42,0.3234048]
[1740953083827,9.57,619.07,618.43,0.29685452]
[1740953084231,9.57,619.07,618.44,0.32339434]
[1740953084427,9.57,619.07,618.45,0.29685452]
[1740953084630,9.57,619.07,618.46,0.32338388]
[1740953084831,9.57,619.07,618.47,0.29685452]
[1740953085034,9.57,619.07,618.48,0.32337343]
[1740953085235,9.57,619.07,618.49,0.29685452]
[1740953085535,9.57,619.07,618.5,0.32336297]
[1740953085829,9.57,619.07,618.51,0.29685452]
[1740953086033,8.427,619.07,618.52,0.32335251]
[1740953086235,4.554,619.07,618.53,0.29685452]
[1740953086433,4.554,619.07,618.54,0.32334206]
[1740953086630,4.554,619.07,618.55,0.29685452]
[1740953087037,4.554,619.07,618.56,0.3233316]
[1740953087233,4.554,619.07,618.57,0.29685452]
[1740953087534,4.554,619.07,618.56,0.3233316]
[1740953090636,3.989,619.07,618.56,0.3233316]
[1740953093744,2.522,619.07,618.56,0.3233316]
[1740953100045,2.522,619.07,618.57,0.29679693]
[1740953100849,2.522,619.07,618.56,0.3233316]
[1740953101950,2.522,619.07,618.57,0.2967888]
[1740953102151,2.522,619.07,618.58,0.32332115]
[1740953102352,2.522,619.07,618.59,0.2967888]
[1740953102554,2.522,619.07,618.6,0.3233107]
[1740953102851,2.522,619.07,618.61,0.2967888]
[1740953103047,2.522,619.07,618.62,0.32330024]
[1740953105145,1.367,619.07,618.62,0.32330024]
[1740953105751,3.999,619.13,618.62,0.32330024]
[1740953106549,3.043,619.13,618.62,0.32330024]
[1740953106745,2.478,619.13,618.62,0.32330024]
[1740953106945,2.478,619.13,618.63,0.29680501]
[1740953107145,2.478,619.13,618.64,0.32328979]
[1740953109653,2.478,619.13,618.68,1.2028038]
[1740953109850,2.478,619.13,618.69,0.32326367]
[1740953113055,2.478,619.13,618.73,1.2028038]
[1740953113555,1.349,619.13,618.74,0.32323754]
[1740953115158,1.349,619.13,618.75,0.29674137]
[1740953115359,1.349,619.13,618.76,0.32322709]
[1740953115961,1.349,619.13,618.84,1.2028038]
[1740953116161,1.349,619.13,618.85,0.32318009]
[1740953118462,1.521,619.21,618.85,0.32318009]
[1740953119858,1.521,619.21,618.91,1.2028038]
[1740953120065,1.521,619.21,618.92,0.32314354]
[1740953121566,0.565,619.21,618.92,0.32314354]
[1740953127469,0.565,619.21,618.93,0.29648355]
[1740953129063,0.565,619.21,618.94,0.32313309]
[1740953129268,0.565,619.21,618.95,0.29648355]
[1740953130069,0.565,619.21,618.99,1.2028038]
[1740953130267,0.565,619.21,619.0,0.29648355]
[1740953131269,0.565,619.21,619.01,0.32309655]
[1740953131470,0.565,619.21,619.02,0.29648355]
[1740953131671,0.565,619.21,619.03,0.32308611]
[1740953131869,1.303,619.33,619.04,0.29648355]
[1740953132063,1.303,619.33,619.05,0.32307568]
[1740953132263,1.303,619.33,619.06,0.29648355]
[1740953132466,1.303,619.33,619.07,0.32306524]
[1740953132667,1.303,619.33,619.08,0.29648355]
[1740953132867,1.303,619.33,619.09,0.3230548]
[1740953133063,1.303,619.33,619.1,0.29648355]
[1740953133268,1.303,619.33,619.11,0.32304437]
[1740953133463,1.303,619.33,619.12,0.29648355]
[1740953133770,1.303,619.33,619.13,0.32303393]
[1740953133965,1.303,619.33,619.14,0.29648355]
[1740953134165,1.303,619.33,619.15,0.61936515]
[1740953134364,1.303,619.33,619.16,0.61935994]
[1740953134565,1.303,619.33,619.17,0.61935472]
[1740953134769,1.303,619.33,619.18,0.6193495]
[1740953134962,1.303,619.33,619.19,0.29634166]
[1740953135166,1.303,619.33,619.2,0.29634166]
[1740953135367,1.303,619.33,619.21,0.29634166]
[1740953135566,1.303,619.33,619.19,0.29634166]
[1740953135764,1.303,619.33,619.2,0.61933907]
[1740953135968,1.303,619.33,619.21,0.61933385]
[1740953136168,1.303,619.33,619.22,0.29634166]
[1740953137469,1.303,619.33,619.23,0.61943027]
[1740953137665,1.303,619.33,619.24,0.61942506]
[1740953137870,1.303,619.33,619.25,0.61941984]
[1740953138070,1.303,619.33,619.26,0.61941463]
[1740953138272,1.303,619.33,619.27,0.61940941]
[1740953138570,1.303,619.33,619.28,0.6194042]
[1740953138770,1.303,619.33,619.29,0.32295047]
[1740953139871,1.385,619.42,619.29,0.32295047]
[1740953140266,1.385,619.42,619.3,0.29645126]
[1740953140472,1.385,619.42,619.31,0.32294004]
[1740953144775,0.955,619.49,619.31,0.32294004]
[1740953148477,0.955,619.49,619.32,0.2964468]
[1740953148779,0.955,619.49,619.33,0.32292961]
[1740953153879,1.163,619.73,619.33,0.32292961]
[1740953159880,0.979,619.88,619.33,0.32292961]
[1740953165082,0.979,619.88,619.39,1.2028038]
[1740953166283,0.979,619.88,619.4,0.32289312]
[1740953168389,0.979,619.88,619.53,1.2028038]
[1740953169897,6.413,619.9,619.53,1.2028038]
[1740953171097,6.413,619.9,619.63,1.2028038]
[1740953173298,6.413,619.9,619.64,0.32276805]
[1740953173699,6.413,619.9,619.68,1.2028038]
[1740953173894,6.413,619.9,619.69,0.32274201]
[1740953174793,4.979,619.9,619.69,0.32274201]
[1740953180101,4.979,619.9,619.43,1.2028038]
[1740953180707,4.979,619.9,619.44,0.32287227]
[1740953182406,4.415,619.9,619.44,0.32287227]
[1740953183206,3.256,619.9,619.44,0.32287227]
[1740953184303,1.927,619.9,619.44,0.32287227]
[1740953186211,0.972,619.9,619.44,0.32287227]
[1740953189209,4.974,620.01,619.44,0.32287227]
[1740953192415,6.488,620.01,619.44,0.32287227]
[1740953194424,6.488,620.01,619.45,0.29635946]
[1740953194718,6.488,620.01,619.46,0.32286184]
[1740953195640,6.488,620.01,619.47,0.29634809]
[1740953195818,6.488,620.01,619.48,0.32285142]
[1740953196014,6.488,620.01,619.49,0.29634809]
[1740953196319,6.488,620.01,619.5,0.322841]
[1740953197513,5.924,620.01,619.5,0.322841]
[1740953205522,4.56,620.01,619.51,0.29634835]
[1740953205822,4.56,620.01,619.52,0.32283057]
[1740953206118,4.56,620.01,619.53,0.29634835]
[1740953206523,3.046,620.01,619.53,0.29634835]
[1740953207022,3.046,620.01,619.54,0.61916868]
[1740953207222,3.046,620.01,619.55,0.61916347]
[1740953207422,3.046,620.01,619.56,0.61915826]
[1740953207723,3.046,620.01,619.57,0.32280452]
[1740953209223,1.999,620.01,619.58,0.29618597]
[1740953209418,1.999,620.01,619.59,0.3227941]
[1740953209622,1.999,620.01,619.6,0.29618597]
[1740953209822,1.999,620.01,619.61,0.32278368]
[1740953210018,1.999,620.01,619.62,0.29618597]
[1740953210225,1.999,620.01,619.63,0.32277326]
[1740953210525,1.999,620.01,619.64,0.29618597]
[1740953210726,1.999,620.01,619.65,0.32276284]
[1740953211026,1.999,620.01,619.66,0.29618597]
[1740953211325,1.999,620.01,619.67,0.32275243]
[1740953212024,1.999,620.01,619.68,0.29617548]
[1740953212224,1.999,620.01,619.69,0.32274201]
[1740953212521,1.044,620.01,619.69,0.32274201]
[1740953215330,1.044,620.01,619.7,0.29621203]
[1740953215525,1.044,620.01,619.71,0.3227316]
[1740953234241,1.059,620.14,619.71,0.3227316]
[1740953238356,1.059,620.14,619.72,0.29621773]
[1740953238556,1.059,620.14,619.73,0.32272118]
[1740953238751,6.864,620.28,619.73,0.32272118]
[1740953240053,6.864,620.28,619.74,0.29621583]
[1740953240552,5.311,620.28,619.74,0.29621583]
[1740953240757,5.311,620.28,619.75,0.32271077]
[1740953240960,5.311,620.28,619.76,0.29621583]
[1740953241161,5.311,620.28,619.77,0.32270035]
[1740953241361,5.311,620.28,619.78,0.29621583]
[1740953241865,5.311,620.28,619.79,0.32268994]
[1740953242161,5.311,620.28,619.8,0.29621583]
[1740953242362,5.311,620.28,619.81,0.32267953]
[1740953243063,5.311,620.28,619.82,0.29621682]
[1740953243264,5.311,620.28,619.83,0.32266911]
[1740953244059,5.311,620.28,619.85,1.2028038]
[1740953244460,5.311,620.28,619.86,0.3226535]
[1740953245661,3.841,620.28,619.86,0.3226535]
[1740953246558,2.629,620.28,619.86,0.3226535]
[1740953252863,2.065,620.28,619.86,0.3226535]
[1740953253965,0.91,620.28,619.86,0.3226535]
[1740953258368,0.91,620.28,619.89,1.2028038]
[1740953258568,0.91,620.28,619.9,0.32263268]
[1740953266481,0.91,620.28,619.93,1.2028038]
[1740953266782,0.91,620.28,619.94,0.32261186]
[1740953267780,2.476,620.43,619.94,0.32261186]
[1740953268378,2.476,620.43,619.98,1.2028038]
[1740953268682,2.476,620.43,619.99,0.32258584]
[1740953270682,2.476,620.43,619.99,1.52538964]
[1740953272785,1.529,620.43,619.99,1.52538964]
[1740953274289,1.529,620.43,619.99,0.32258584]
[1740953279990,0.965,620.43,619.99,0.32258584]
[1740953283894,0.965,620.43,620.0,1.2028038]
[1740953284494,0.965,620.43,620.01,0.32257544]
[1740953285195,4.01,620.56,620.01,0.32257544]
[1740953290006,2.63,620.56,620.01,0.32257544]
[1740953292606,1.7,620.56,620.01,0.32257544]
[1740953297104,1.136,620.56,620.01,0.31184]
[1740953301816,1.413,620.57,620.01,0.31184]
[1740953328933,1.413,620.57,619.78,1.2028038]
[1740953329833,1.413,620.57,619.79,1.2028038]
[1740953332535,6.049,620.57,619.79,1.2028038]
[1740953334039,7.201,620.57,619.79,1.2028038]
[1740953342744,7.201,620.57,619.27,1.43765995]
[1740953342745,7.201,620.57,619.83,1.2028038]
[1740953342946,8.482,620.57,619.83,1.2028038]
[1740953344746,8.482,620.57,619.81,1.2028038]
[1740953345142,9.799,620.57,619.81,1.2028038]
[1740953347248,9.799,620.57,619.91,1.2028038]
[1740953349049,9.799,620.57,619.85,1.2028038]
[1740953353960,9.799,620.57,619.82,1.2028038]
[1740953356060,9.799,620.57,619.88,1.2028038]
[1740953358361,9.799,620.57,619.56,1.19666743]
[1740953358362,9.799,620.57,619.8,1.2028038]
[1740953360061,9.799,620.57,619.77,1.2028038]
[1740953362869,9.799,620.57,619.71,1.2028038]
[1740953363069,9.799,620.57,619.73,0.32272118]
[1740953367176,9.799,620.57,619.81,1.2028038]
[1740953367376,9.799,620.57,619.82,0.32267432]
[1740953369878,9.799,620.57,619.88,1.2028038]
[1740953370176,9.799,620.57,619.89,0.32263788]
[1740953390990,9.799,620.57,619.9,0.29620163]
[1740953391194,9.799,620.57,619.91,0.32262747]
[1740953391401,9.799,620.57,619.98,1.2028038]
[1740953391598,9.799,620.57,619.99,0.32258584]
[1740953394901,9.799,620.57,620.0,1.2028038]
[1740953395100,9.799,620.57,620.01,0.32257544]
[1740953395292,8.488,620.57,620.01,0.32257544]
[1740953395496,1.4380471,621.46,620.01,0.32257544]
[1740953395698,0.60418517,621.45,620.01,0.32257544]
[1740953395898,0.60419035,621.44,620.01,0.32257544]
[1740953396098,0.60419553,621.43,620.01,0.32257544]
[1740953396296,0.28235719,621.42,620.01,0.32257544]
[1740953398504,0.953,621.41,620.01,0.32257544]
[1740953398700,0.28235719,621.4,620.01,0.32257544]
[1740953402307,1.232,621.39,620.01,0.32257544]
[1740953402501,0.28235719,621.38,620.01,0.32257544]
[1740953403809,1.232,621.39,620.01,0.32257544]
[1740953404011,0.28234928,621.38,620.01,0.32257544]
[1740953404706,1.132,621.37,620.01,0.32257544]
[1740953404912,0.28234928,621.36,620.01,0.32257544]
[1740953408115,1.561,621.35,620.01,0.32257544]
[1740953408311,0.28234928,621.34,620.01,0.32257544]
[1740953411726,0.28234992,621.33,620.01,0.32257544]
[1740953411920,0.28234992,621.32,620.01,0.32257544]
[1740953412117,1.561,621.35,620.01,0.32257544]
[1740953412118,0.28234992,621.31,620.01,0.32257544]
[1740953412419,0.28234992,621.3,620.01,0.32257544]
[1740953412619,0.28234992,621.34,620.01,0.32257544]
[1740953412817,0.28234992,621.33,620.01,0.32257544]
[1740953413121,0.28234992,621.32,620.01,0.32257544]
[1740953413322,1.561,621.35,620.01,0.32257544]
[1740953413623,0.28234962,621.34,620.01,0.32257544]
[1740953414723,0.953,621.33,620.01,0.32257544]
[1740953415022,0.28235261,621.32,620.01,0.32257544]
[1740953415725,0.28235261,621.32,620.03,1.2028038]
[1740953415926,0.28235261,621.32,620.04,0.32255983]
[1740953416928,1.15635261,621.32,620.04,0.32255983]
[1740953417127,0.28235261,621.31,620.04,0.32255983]
[1740953419830,0.874,621.32,620.04,0.32255983]
[1740953420028,0.28235883,621.31,620.04,0.32255983]
[1740953422935,1.226,621.3,620.04,0.32255983]
[1740953423127,0.28235883,621.29,620.04,0.32255983]
[1740953423934,0.563,621.28,620.04,0.32255983]
[1740953424136,0.28235883,621.27,620.04,0.32255983]
[1740953427036,0.977,621.26,620.04,0.32255983]
[1740953427234,0.28235883,621.25,620.04,0.32255983]
[1740953433138,0.977,621.26,620.04,0.32255983]
[1740953433337,0.28235526,621.25,620.04,0.32255983]
[1740953437535,0.28235526,621.25,620.04,1.52536363]
[1740953437842,0.953,621.24,620.04,1.52536363]
[1740953438134,0.28235526,621.23,620.04,1.52536363]
[1740953439740,0.953,621.24,620.04,1.52536363]
[1740953439940,0.28234902,621.23,620.04,1.52536363]
[1740953440140,0.84534902,621.23,620.04,1.52536363]
[1740953440341,0.28234902,621.22,620.04,1.52536363]
[1740953440941,1.007,621.21,620.04,1.52536363]
[1740953441143,0.28234902,621.2,620.04,1.52536363]
[1740953442046,0.28234902,621.2,620.04,0.32255983]
[1740953444647,0.28234902,621.2,620.08,1.2028038]
[1740953444948,0.28234902,621.2,620.09,0.32253382]
[1740953446041,1.50034902,621.2,620.09,0.32253382]
[1740953446244,1.218,621.2,620.09,0.32253382]
[1740953446541,0.28234908,621.19,620.09,0.32253382]
[1740953446947,0.28234908,621.19,620.09,1.52533762]
[1740953449456,1.49934908,621.19,620.09,1.52533762]
[1740953449652,0.28234908,621.18,620.09,1.52533762]
[1740953454554,0.849,621.17,620.09,1.52533762]
[1740953454747,0.28234908,621.16,620.09,1.52533762]
[1740953454954,0.28234908,621.16,620.09,0.32253382]
[1740953455551,1.365,621.15,620.09,0.32253382]
[1740953455752,0.28234908,621.14,620.09,0.32253382]
[1740953458457,0.905,621.13,620.09,0.32253382]
[1740953458652,0.28234908,621.12,620.09,0.32253382]
[1740953458859,0.905,621.13,620.09,0.32253382]
[1740953459659,0.28231099,621.12,620.09,0.32253382]
[1740953461666,0.905,621.13,620.09,0.32253382]
[1740953462166,1.401,621.12,620.09,0.32253382]
[1740953462366,0.28228699,621.11,620.09,0.32253382]
[1740953462962,0.867,621.1,620.09,0.32253382]
[1740953465366,0.563,621.09,620.09,0.32253382]
[1740953466171,1.014,621.08,620.09,0.32253382]
[1740953470672,0.28231207,621.07,620.09,0.32253382]
[1740953471580,1.014,621.08,620.09,0.32253382]
[1740953476281,2.068,621.08,620.09,0.32253382]
[1740953479183,0.28232332,621.07,620.09,0.32253382]
[1740953484888,3.021,621.08,620.09,0.32253382]
[1740953484889,0.28233159,621.06,620.09,0.32253382]
[1740953485088,0.28233159,621.07,620.09,0.32253382]
[1740953485288,0.28233159,621.06,620.09,0.32253382]
[1740953485483,0.28233159,621.05,620.09,0.32253382]
[1740953485788,0.28233159,621.04,620.09,0.32253382]
[1740953485986,0.28233159,621.03,620.09,0.32253382]
[1740953486190,0.28233506,621.07,620.09,0.32253382]
[1740953486390,3.021,621.08,620.09,0.32253382]
[1740953486590,0.28233601,621.07,620.09,0.32253382]
[1740953487789,1.49433601,621.07,620.09,0.32253382]
[1740953487989,0.28233601,621.06,620.09,0.32253382]
[1740953489391,1.074,621.05,620.09,0.32253382]
[1740953489593,0.28233601,621.04,620.09,0.32253382]
[1740953491593,1.074,621.03,620.09,0.32253382]
[1740953492591,0.95,621.02,620.09,0.32253382]
[1740953495993,0.28233001,621.01,620.09,0.32253382]
[1740953496491,1.373,621.0,620.09,0.32253382]
[1740953496690,0.28233001,620.99,620.09,0.32253382]
[1740953498500,0.563,620.98,620.09,0.32253382]
[1740953500701,1.41,620.97,620.09,0.32253382]
[1740953504602,0.952,620.96,620.09,0.32253382]
[1740953504803,1.877,620.96,620.09,0.32253382]
[1740953512813,1.051,620.95,620.09,0.32253382]
[1740953513717,1.614,620.95,620.09,0.32253382]
[1740953514108,2.51,620.95,620.09,0.32253382]
[1740953519619,3.567,620.95,620.09,0.32253382]
[1740953521221,4.981,620.95,620.09,0.32253382]
[1740953526831,4.981,620.95,620.09,1.52533762]
[1740953527937,6.417,620.95,620.09,1.52533762]
[1740953532541,6.417,620.95,620.1,1.2028038]
[1740953532835,6.417,620.95,620.11,0.32252342]
[1740953537645,7.369,620.95,620.11,0.32252342]
[1740953550457,0.28239141,620.94,620.11,0.32252342]
[1740953550762,7.369,620.95,620.11,0.32252342]